bitfinex/quotes_SOLUSD_20250731
["timestamp","ask_amount","ask_price","bid_price","bid_amount"]
[1753971186177,3.78688925,177.46,177.45,51.83571605]
[1753971186387,3.78688925,177.46,177.45,57.4711063]
[1753971186591,0.03,177.46,177.45,57.4711063]
[1753971186918,0.03,177.48,177.45,74.25579027]
[1753971187097,0.03,177.52,177.48,16.78468397]
[1753971187301,0.03,177.52,177.51,9.80571605]
[1753971187491,3.78141964,177.52,177.51,51.12571605]
[1753971187676,0.03,177.52,177.51,51.83571605]
[1753971188370,0.03,177.52,177.51,57.46920148]
[1753971188572,0.03,177.52,177.51,74.25388545]
[1753971188791,0.03,177.52,177.51,78.24289112]
[1753971189010,0.1,177.54,177.52,16.78468397]
[1753971189184,0.1,177.54,177.53,72.46269076]
[1753971189495,0.1,177.56,177.54,16.78468397]
[1753971189687,0.1,177.56,177.55,72.46262731]
[1753971189880,0.1,177.56,177.55,73.17262731]
[1753971190477,0.1,177.56,177.55,78.80484358]
[1753971192002,0.1,177.56,177.55,78.24162196]
[1753971192806,0.1,177.56,177.55,61.45693799]
[1753971192998,0.1,177.56,177.55,20.13693799]
[1753971193188,0.1,177.56,177.55,60.72693799]
[1753971193386,0.1,177.56,177.55,61.43693799]
[1753971193814,0.1,177.56,177.41,28.58723006]
[1753971193815,14.55472172,177.56,177.48,14.08577792]
[1753971193979,13.79472172,177.55,177.49,46.93412023]
[1753971194178,0.76,177.56,177.51,13.79472172]
[1753971194413,14.3576263,177.55,177.52,41.3]
[1753971194609,13.79472172,177.53,177.52,41.3]
[1753971194798,14.45472172,177.53,177.52,41.3]
[1753971195606,15.0176263,177.53,177.52,41.3]
[1753971196310,18.74942508,177.53,177.52,41.3]
[1753971196520,24.38227586,177.53,177.52,41.3]
[1753971197201,41.16695983,177.53,177.52,41.3]
[1753971198218,41.16695983,177.53,177.45,40.62]
[1753971198395,13.79472172,177.46,177.45,40.62]
[1753971198591,14.45472172,177.46,177.45,81.9]
[1753971198917,20.08979441,177.46,177.45,41.28]
[1753971199601,14.45472172,177.46,177.45,41.28]
[1753971200293,26.56290458,177.48,177.45,55.07472172]
[1753971200494,26.0,177.48,177.45,55.07472172]
[1753971200709,26.0,177.48,177.45,41.28]
[1753971200920,26.0,177.48,177.45,55.07472172]
[1753971201414,13.79472172,177.46,177.45,41.28]
[1753971203310,14.45472172,177.46,177.45,41.28]
[1753971203515,20.08979441,177.46,177.45,41.28]
[1753971203701,23.83126551,177.46,177.45,41.28]
[1753971204617,9.37654379,177.46,177.45,41.28]
[1753971204794,23.83126551,177.46,177.45,41.28]
[1753971206286,171.13126551,177.46,177.45,41.28]
[1753971207015,187.91594948,177.46,177.45,41.28]
[1753971207223,40.61594948,177.46,177.45,41.28]
[1753971207426,45.34121363,177.46,177.45,41.28]
[1753971207595,45.34129937,177.46,177.45,41.28]
[1753971208096,45.34130252,177.46,177.45,41.28]
[1753971208306,41.17885406,177.46,177.45,41.28]
[1753971208491,40.61594948,177.46,177.45,41.28]
[1753971209392,16.78468397,177.41,177.36,0.06]
[1753971209704,13.79472172,177.37,177.36,0.06]
[1753971209896,13.79472172,177.37,177.36,41.34]
[1753971210601,147.3,177.4,177.36,55.84472172]
[1753971210797,147.3,177.4,177.37,14.50472172]
[1753971210992,147.3,177.4,177.37,10.51010119]
[1753971211392,147.3,177.4,177.38,0.71]
[1753971211816,10.36300577,177.39,177.36,41.34]
[1753971212114,9.80010119,177.38,177.36,41.34]
[1753971212813,147.3,177.4,177.37,10.51010119]
[1753971212992,147.3,177.4,177.38,10.51010119]
[1753971213192,147.3,177.4,177.36,51.14010119]
[1753971213392,147.3,177.4,177.37,0.71]
[1753971214218,147.3,177.4,177.38,0.69]
[1753971214519,147.3,177.4,177.39,0.69]
[1753971214713,147.3,177.4,177.39,10.49010119]
[1753971215109,147.3,177.4,177.39,16.12739754]
[1753971215312,147.3,177.4,177.39,0.69]
[1753971215620,147.3,177.4,177.39,16.12739754]
[1753971215814,147.3,177.4,177.38,9.80010119]
[1753971216116,147.3,177.4,177.37,15.43797284]
[1753971216314,147.3,177.4,177.38,0.69]
[1753971216519,147.3,177.4,177.37,5.63787165]
[1753971216708,9.80010119,177.38,177.36,41.34]
[1753971216902,10.36300577,177.37,177.36,41.34]
[1753971217103,26.0,177.37,177.36,41.34]
[1753971217607,0.56290458,177.38,177.36,41.34]
[1753971217814,147.3,177.4,177.37,0.69]
[1753971218223,147.3,177.4,177.39,9.80010119]
[1753971218424,9.80010119,177.44,177.39,41.97]
[1753971218738,0.56290458,177.45,177.42,9.80010119]
[1753971218925,147.3,177.46,177.44,9.80010119]
[1753971219234,147.3,177.51,177.45,51.77010119]
[1753971219535,0.03,177.54,177.5,9.80010119]
[1753971219742,26.0,177.52,177.51,41.28]
[1753971220406,0.59290458,177.54,177.51,51.08010119]
[1753971220606,0.59290458,177.54,177.52,9.80010119]
[1753971221018,0.03,177.54,177.53,13.80471799]
[1753971222119,0.03,177.54,177.53,14.49471799]
[1753971222905,0.03,177.54,177.53,20.12756877]
[1753971223807,0.03,177.54,177.53,14.49471799]
[1753971224025,0.03,177.54,177.53,20.12756877]
[1753971224212,0.03,177.54,177.53,0.69]
[1753971224412,0.03,177.54,177.53,14.49471799]
[1753971224716,0.03,177.54,177.53,20.12756877]
[1753971224918,0.03,177.54,177.53,14.49471799]
[1753971225436,0.03,177.54,177.53,13.80471799]
[1753971226431,0.03,177.54,177.53,20.12756877]
[1753971226733,0.03,177.54,177.53,6.32285078]
[1753971227032,0.03,177.54,177.53,20.12756877]
[1753971227729,0.03,177.54,177.53,37.47553781]
[1753971227912,0.03,177.55,177.54,30.58940196]
[1753971228114,0.1,177.56,177.54,72.53940196]
[1753971228316,0.1,177.56,177.55,31.15262358]
[1753971228536,0.1,177.56,177.55,31.84262358]
[1753971228933,0.1,177.56,177.55,14.49471799]
[1753971229309,0.1,177.56,177.55,6.32221627]
[1753971229622,0.1,177.56,177.55,20.12693426]
[1753971229828,0.1,177.56,177.55,19.43693426]
[1753971230033,0.1,177.56,177.55,60.69693426]
[1753971230347,0.1,177.56,177.55,55.06471799]
[1753971230519,0.1,177.56,177.55,41.26]
[1753971231447,0.1,177.56,177.55,60.69693426]
[1753971231737,0.1,177.56,177.55,41.26]
[1753971232121,0.1,177.56,177.55,61.38693426]
[1753971232322,0.1,177.56,177.55,60.69693426]
[1753971233116,0.1,177.56,177.52,0.69]
[1753971233317,0.1,177.56,177.53,13.80471799]
[1753971233628,0.1,177.56,177.55,13.80471799]
[1753971234014,0.1,177.56,177.55,14.49471799]
[1753971234446,0.1,177.56,177.55,0.69]
[1753971234743,0.1,177.56,177.55,14.49471799]
[1753971235240,0.1,177.56,177.55,20.12693426]
[1753971235538,0.1,177.56,177.55,13.80471799]
[1753971235839,0.1,177.56,177.55,41.24]
[1753971236043,0.1,177.56,177.55,55.04471799]
[1753971236239,0.1,177.56,177.55,55.73471799]
[1753971237423,0.1,177.56,177.55,61.36693426]
[1753971238243,0.1,177.56,177.54,5.63243101]
[1753971238539,0.1,177.56,177.55,55.04471799]
[1753971238736,0.1,177.56,177.55,55.73471799]
[1753971239642,0.1,177.56,177.55,60.67693426]
[1753971239831,0.1,177.56,177.55,46.87221627]
[1753971240155,0.1,177.56,177.55,41.24]
[1753971240337,0.1,177.56,177.55,55.04471799]
[1753971241618,0.1,177.56,177.55,61.36693426]
[1753971241840,0.1,177.56,177.55,47.56221627]
[1753971242131,0.1,177.56,177.55,61.36693426]
[1753971242335,0.1,177.56,177.55,41.22]
[1753971242529,0.1,177.56,177.55,55.02471799]
[1753971242737,0.1,177.56,177.55,41.22]
[1753971242917,0.1,177.56,177.54,0.06]
[1753971243120,11.01298619,177.55,177.54,0.06]
[1753971243744,11.01298619,177.55,177.54,41.28]
[1753971243745,16.64520246,177.55,177.54,41.28]
[1753971244315,33.42988643,177.55,177.54,41.28]
[1753971244744,43.20996804,177.55,177.54,0.06]
[1753971244925,33.42988643,177.55,177.54,0.06]
[1753971246681,43.20996804,177.55,177.54,0.06]
[1753971246848,16.78468397,177.54,177.52,41.28]
[1753971247165,14.09695973,177.53,177.52,0.06]
[1753971247318,14.80695973,177.53,177.52,0.06]
[1753971247643,16.68583697,177.53,177.52,0.06]
[1753971247830,20.43999522,177.53,177.52,0.06]
[1753971250860,42.78468397,177.49,177.4,1.6239]
[1753971251025,16.78468397,177.47,177.39,0.66]
[1753971251358,9.78008161,177.45,177.4,51.00008161]
[1753971251521,0.56290458,177.46,177.41,9.78008161]
[1753971251723,9.78008161,177.46,177.42,0.66]
[1753971252033,0.56290458,177.48,177.4,57.2967628]
[1753971252034,10.34298619,177.45,177.4,57.2967628]
[1753971252361,9.78008161,177.45,177.41,0.66]
[1753971253255,9.78008161,177.44,177.41,0.66]
[1753971253421,9.78008161,177.45,177.4,56.6367628]
[1753971253625,9.78008161,177.41,177.36,0.72]
[1753971253966,9.78008161,177.39,177.37,41.88]
[1753971254126,9.78008161,177.4,177.37,41.88]
[1753971255037,0.56290458,177.43,177.38,10.44008161]
[1753971255359,10.34298619,177.43,177.39,0.66]
[1753971255647,9.78008161,177.4,177.37,41.22]
[1753971255829,0.56290458,177.43,177.39,9.78008161]
[1753971256033,0.56290458,177.43,177.41,9.78008161]
[1753971256250,147.3,177.44,177.42,41.24]
[1753971256456,157.79008161,177.44,177.42,41.24]
[1753971256745,147.3,177.44,177.42,41.24]
[1753971256953,157.08008161,177.44,177.42,41.24]
[1753971257822,147.3,177.44,177.43,10.44008161]
[1753971258026,35.78008161,177.47,177.43,9.78008161]
[1753971258242,0.56290458,177.46,177.42,51.02008161]
[1753971258461,35.78008161,177.47,177.42,56.65640269]
[1753971258763,35.78008161,177.47,177.43,10.44008161]
[1753971259134,35.78008161,177.47,177.42,41.24]
[1753971259135,9.78008161,177.45,177.42,41.24]
[1753971259448,9.78008161,177.45,177.4,10.44008161]
[1753971259658,9.78008161,177.43,177.41,41.24]
[1753971259833,147.3,177.42,177.41,41.24]
[1753971260738,157.08008161,177.42,177.41,41.24]
[1753971261256,163.42642475,177.42,177.41,41.24]
[1753971262164,162.71642475,177.42,177.41,41.24]
[1753971262373,147.3,177.42,177.41,41.24]
[1753971262938,157.79008161,177.42,177.41,41.24]
[1753971263139,157.08008161,177.42,177.41,41.24]
[1753971263750,147.3,177.42,177.41,41.24]
[1753971264351,157.79008161,177.42,177.36,0.72]
[1753971264541,9.78008161,177.4,177.37,41.22]
[1753971264738,10.34298619,177.39,177.37,41.22]
[1753971264938,10.34298619,177.39,177.36,0.06]
[1753971264939,147.3,177.38,177.36,0.06]
[1753971265172,147.3,177.37,177.36,0.06]
[1753971265478,147.3,177.37,177.36,46.91824988]
[1753971265846,147.3,177.37,177.36,47.57824988]
[1753971266579,147.3,177.37,177.36,57.35833149]
[1753971267354,147.3,177.37,177.36,47.57824988]
[1753971267555,147.3,177.37,177.36,57.35833149]
[1753971268040,147.3,177.42,177.36,71.4539562]
[1753971268241,147.3,177.42,177.37,0.66]
[1753971268479,147.3,177.42,177.38,51.66008161]
[1753971268845,157.08008161,177.42,177.38,41.88]
[1753971269183,147.3,177.42,177.38,51.66008161]
[1753971269372,147.3,177.42,177.39,0.66]
[1753971269884,147.3,177.42,177.41,9.78008161]
[1753971270045,147.3,177.42,177.41,51.00008161]
[1753971270247,147.3,177.42,177.41,41.88]
[1753971270499,147.3,177.42,177.41,51.00008161]
[1753971270645,147.3,177.42,177.38,5.63750453]
[1753971270974,157.79008161,177.42,177.39,41.22]
[1753971271359,157.79008161,177.42,177.37,10.44008161]
[1753971271548,157.79008161,177.42,177.38,41.22]
[1753971271876,162.71643298,177.42,177.38,41.22]
[1753971272085,11.05298619,177.41,177.38,41.22]
[1753971272290,9.78008161,177.39,177.38,41.22]
[1753971272451,11.05298619,177.39,177.38,41.22]
[1753971272792,10.49008161,177.39,177.38,41.22]
[1753971273159,16.12737796,177.39,177.36,0.06]
[1753971273384,9.78008161,177.37,177.36,41.28]
[1753971273547,10.49008161,177.37,177.36,41.28]
[1753971273971,11.05298619,177.37,177.36,41.28]
[1753971274274,53.83767016,177.37,177.36,0.06]
[1753971274481,57.59806836,177.37,177.36,0.06]
[1753971274787,53.83767016,177.37,177.36,0.06]
[1753971274990,26.56290458,177.37,177.36,41.28]
[1753971275159,36.34298619,177.37,177.36,41.28]
[1753971275353,42.67091819,177.37,177.36,41.28]
[1753971276363,59.45560216,177.37,177.36,41.28]
[1753971277190,59.45560216,177.37,177.36,0.06]
[1753971277377,63.21479534,177.37,177.36,0.06]
[1753971277685,59.45560216,177.37,177.36,0.06]
[1753971277877,0.56290458,177.37,177.36,0.06]
[1753971278271,22.42155188,177.41,177.36,0.06]
[1753971278467,9.78008161,177.39,177.36,0.77]
[1753971278781,0.69,177.42,177.36,0.77]
[1753971278782,10.47008161,177.42,177.38,9.78008161]
[1753971279086,0.56290458,177.41,177.4,9.78008161]
[1753971279290,0.56290458,177.43,177.4,9.78008161]
[1753971279498,11.03298619,177.43,177.39,51.00008161]
[1753971279955,1.25290458,177.43,177.39,41.22]
[1753971280158,11.03298619,177.43,177.39,41.22]
[1753971280493,35.78008161,177.41,177.4,41.22]
[1753971280692,11.03298619,177.41,177.4,41.22]
[1753971280860,37.03298619,177.41,177.4,41.22]
[1753971281056,36.34298619,177.41,177.4,41.22]
[1753971281261,0.56290458,177.41,177.4,56.63706018]
[1753971281486,26.0,177.43,177.4,51.71008161]
[1753971281681,0.56290458,177.45,177.41,10.49008161]
[1753971281881,4.32728359,177.45,177.41,10.49008161]
[1753971282095,30.32728359,177.45,177.41,10.49008161]
[1753971282266,26.0,177.44,177.41,0.71]
[1753971282466,26.56290458,177.44,177.42,9.78008161]
[1753971282778,26.56290458,177.44,177.41,10.49008161]
[1753971282988,26.56290458,177.44,177.41,0.71]
[1753971283163,0.56290458,177.44,177.41,9.78008161]
[1753971283361,3.76736124,177.46,177.43,9.78008161]
[1753971283560,0.56290458,177.47,177.44,51.00008161]
[1753971283799,0.56290458,177.47,177.45,9.78008161]
[1753971283974,0.56290458,177.47,177.46,9.78008161]
[1753971284203,3.7682704,177.49,177.46,10.49008161]
[1753971284368,4.33135048,177.5,177.47,10.49008161]
[1753971284612,14.11143209,177.5,177.48,41.2]
[1753971284892,3.7684459,177.49,177.48,41.2]
[1753971285197,4.33135048,177.5,177.48,51.69008161]
[1753971285366,0.56290458,177.5,177.48,51.69008161]
[1753971285570,4.33135048,177.51,177.48,51.69008161]
[1753971285765,4.33135048,177.51,177.48,41.91]
[1753971286094,4.33135048,177.51,177.48,50.98008161]
[1753971286304,0.56290458,177.51,177.49,0.71]
[1753971286600,4.36135048,177.52,177.49,10.49008161]
[1753971286776,147.3,177.5,177.48,50.98008161]
[1753971286973,147.3,177.5,177.48,51.69008161]
[1753971287181,147.3,177.5,177.49,9.78008161]
[1753971287493,147.3,177.5,177.49,10.49008161]
[1753971288900,0.03,177.52,177.49,16.12420184]
[1753971289196,0.03,177.52,177.51,9.78008161]
[1753971289359,0.03,177.52,177.51,50.96008161]
[1753971289565,0.03,177.52,177.51,51.67008161]
[1753971290687,0.03,177.52,177.51,41.18]
[1753971292372,0.03,177.52,177.51,57.30356704]
[1753971292795,0.03,177.52,177.51,51.67008161]
[1753971293200,0.03,177.52,177.51,41.18]
[1753971293700,10.50008161,177.52,177.46,6.34481543]
[1753971293901,0.03,177.52,177.5,9.78008161]
[1753971294210,0.03,177.52,177.51,41.18]
[1753971294760,0.03,177.52,177.51,50.96008161]
[1753971294985,0.03,177.52,177.51,41.18]
[1753971297419,0.03,177.52,177.51,57.30356704]
[1753971298283,0.03,177.54,177.51,57.30356704]
[1753971298491,0.03,177.54,177.53,9.78008161]
[1753971298685,0.03,177.54,177.53,50.94008161]
[1753971298911,0.03,177.54,177.53,51.65008161]
[1753971299792,0.03,177.54,177.53,10.49008161]
[1753971300112,0.03,177.54,177.53,57.28293239]
[1753971300314,0.03,177.54,177.53,41.16]
[1753971300517,0.03,177.54,177.53,50.94008161]
[1753971300709,10.50008161,177.54,177.46,2.3307]
[1753971300894,9.78008161,177.5,177.47,41.14]
[1753971301102,10.47008161,177.49,177.47,41.14]
[1753971301326,9.78008161,177.48,177.47,41.14]
[1753971301511,9.78008161,177.51,177.47,41.14]
[1753971301813,9.78008161,177.51,177.43,0.71]
[1753971301814,9.78008161,177.48,177.43,0.71]
[1753971301992,9.78008161,177.45,177.44,41.14]
[1753971302392,9.78008161,177.45,177.38,0.06]
[1753971302393,11.03298619,177.45,177.38,0.77]
[1753971302595,16.78468397,177.43,177.38,0.06]
[1753971302918,9.78008161,177.41,177.39,41.14]
[1753971303125,0.56290458,177.4,177.39,41.14]
[1753971303431,11.03298619,177.4,177.39,41.14]
[1753971303912,11.03298619,177.4,177.38,0.06]
[1753971303913,32.33680828,177.4,177.38,0.06]
[1753971304125,58.89206193,177.39,177.38,0.06]
[1753971304715,58.89206193,177.39,177.36,0.06]
[1753971304716,16.78468397,177.37,177.36,0.06]
[1753971304918,16.78468397,177.36,177.34,0.06]
[1753971305223,26.0,177.29,177.25,41.16]
[1753971305519,9.78008161,177.26,177.25,41.16]
[1753971305718,11.05298619,177.26,177.25,41.16]
[1753971306222,10.34298619,177.26,177.25,41.16]
[1753971306423,0.56290458,177.26,177.22,41.16]
[1753971306612,9.78008161,177.25,177.22,41.16]
[1753971306816,9.78008161,177.23,177.22,41.16]
[1753971307314,0.71,177.23,177.2,0.2]
[1753971307505,0.56290458,177.22,177.2,0.2]
[1753971307714,9.78008161,177.21,177.2,0.2]
[1753971307904,147.3,177.22,177.2,0.2]
[1753971308101,147.3,177.22,177.2,0.88]
[1753971308424,147.3,177.21,177.2,0.88]
[1753971308716,26.0,177.24,177.2,0.88]
[1753971308717,9.78008161,177.24,177.2,0.88]
[1753971308925,0.56290458,177.25,177.21,0.68]
[1753971309131,148.01,177.24,177.2,0.2]
[1753971309428,0.56290458,177.23,177.21,41.84]
[1753971309623,147.3,177.24,177.22,10.46008161]
[1753971309826,147.3,177.24,177.23,10.46008161]
[1753971310023,147.3,177.29,177.23,10.46008161]
[1753971310225,0.56290458,177.28,177.25,9.78008161]
[1753971310531,0.56290458,177.28,177.26,41.18]
[1753971311205,0.56290458,177.29,177.26,41.18]
[1753971311505,9.78008161,177.27,177.26,41.18]
[1753971311723,37.05298619,177.27,177.26,41.18]
[1753971312226,27.27290458,177.27,177.26,41.18]
[1753971312534,0.56290458,177.28,177.26,51.64008161]
[1753971312736,0.71,177.36,177.27,10.46008161]
[1753971312947,0.56290458,177.35,177.28,0.68]
[1753971313238,26.56290458,177.36,177.33,9.78008161]
[1753971313443,26.56290458,177.36,177.34,50.96008161]
[1753971313609,26.56290458,177.36,177.34,41.18]
[1753971313814,14.23696679,177.35,177.34,41.18]
[1753971314012,26.56290458,177.36,177.34,41.18]
[1753971314211,0.56290458,177.36,177.34,50.96008161]
[1753971314408,30.30890751,177.38,177.34,41.86]
[1753971314621,26.56290458,177.38,177.35,9.78008161]
[1753971314812,36.34298619,177.38,177.34,41.18]
[1753971315020,14.23600398,177.37,177.34,41.18]
[1753971315204,0.56290458,177.36,177.34,41.18]
[1753971315434,0.56290458,177.36,177.34,50.96008161]
[1753971315628,0.56290458,177.37,177.32,0.68]
[1753971315815,0.71,177.36,177.33,41.18]
[1753971316016,10.34298619,177.35,177.33,41.18]
[1753971316209,0.56290458,177.35,177.33,41.18]
[1753971316633,9.78008161,177.36,177.33,41.18]
[1753971316840,0.56290458,177.35,177.33,41.18]
[1753971317036,10.49008161,177.34,177.33,41.18]
[1753971317348,10.49008161,177.34,177.25,6.32173313]
[1753971317349,16.78468397,177.33,177.25,6.32173313]
[1753971317521,9.78008161,177.3,177.26,41.18]
[1753971317845,0.56290458,177.29,177.26,41.86]
[1753971318045,0.56290458,177.29,177.27,0.68]
[1753971318341,9.78008161,177.31,177.28,0.68]
[1753971318534,0.56290458,177.3,177.26,50.96008161]
[1753971318733,0.56290458,177.3,177.26,41.86]
[1753971319045,10.34298619,177.3,177.26,51.64008161]
[1753971319348,0.56290458,177.3,177.26,41.18]
[1753971319515,9.78008161,177.29,177.26,41.18]
[1753971319720,10.34298619,177.3,177.26,50.96008161]
[1753971319921,10.34298619,177.3,177.27,0.68]
[1753971320120,0.56290458,177.3,177.27,0.68]
[1753971320341,10.34298619,177.3,177.27,0.68]
[1753971320940,0.56290458,177.31,177.28,0.68]
[1753971321156,0.56290458,177.31,177.29,0.68]
[1753971321449,147.3,177.32,177.3,50.96008161]
[1753971321647,147.3,177.32,177.31,41.18]
[1753971322117,157.08008161,177.32,177.31,41.18]
[1753971322436,161.53330963,177.32,177.31,41.18]
[1753971322614,157.08008161,177.32,177.31,41.18]
[1753971323012,160.82295423,177.32,177.31,41.18]
[1753971323231,151.04287262,177.32,177.31,41.18]
[1753971323414,147.3,177.32,177.31,51.64008161]
[1753971323624,147.3,177.32,177.31,41.86]
[1753971323943,147.3,177.32,177.31,41.18]
[1753971325232,189.42960337,177.32,177.31,41.18]
[1753971325435,183.79008161,177.32,177.31,41.18]
[1753971325617,36.49008161,177.32,177.31,41.18]
[1753971325936,36.34298619,177.32,177.31,41.18]
[1753971326138,42.69250795,177.32,177.31,41.18]
[1753971326314,46.43431067,177.32,177.31,41.18]
[1753971326514,42.69250795,177.32,177.31,41.18]
[1753971326744,32.91242634,177.32,177.31,41.18]
[1753971327038,41.98250795,177.32,177.31,41.18]
[1753971327243,42.69250795,177.32,177.31,41.18]
[1753971327547,59.47719192,177.32,177.31,41.18]
[1753971327714,63.21768322,177.32,177.31,41.18]
[1753971327911,26.0,177.28,177.24,0.06]
[1753971328132,9.78008161,177.25,177.24,0.06]
[1753971328332,0.56290458,177.27,177.24,0.06]
[1753971328518,10.34298619,177.27,177.24,0.06]
[1753971328943,9.78008161,177.25,177.24,0.06]
[1753971329120,0.71,177.26,177.24,0.06]
[1753971329318,10.34298619,177.25,177.24,0.06]
[1753971329646,4.30279749,177.25,177.24,0.06]
[1753971329944,5.64071889,177.29,177.27,26.0]
[1753971329945,0.56290458,177.29,177.27,26.0]
[1753971330146,0.56290458,177.36,177.28,51.93008161]
[1753971330445,0.03,177.34,177.29,5.93047605]
[1753971330645,0.03,177.34,177.33,9.78008161]
[1753971330847,0.03,177.34,177.33,41.86]
[1753971331925,0.03,177.34,177.33,42.15]
[1753971332129,0.03,177.34,177.33,55.98163641]
[1753971332544,0.03,177.34,177.33,61.62084015]
[1753971332849,0.03,177.34,177.33,5.63920374]
[1753971333149,0.56290458,177.44,177.33,75.69884951]
[1753971333339,0.56290458,177.44,177.42,13.83163641]
[1753971333650,0.56290458,177.44,177.42,41.82]
[1753971333943,0.56290458,177.45,177.42,55.65163641]
[1753971334148,1.27290458,177.46,177.43,13.83163641]
[1753971334537,1.27290458,177.46,177.44,13.83163641]
[1753971334936,1.27290458,177.46,177.43,13.83163641]
[1753971335457,0.69,177.49,177.45,13.83163641]
[1753971335632,0.56290458,177.48,177.46,41.84]
[1753971335839,1.25290458,177.49,177.46,55.67163641]
[1753971336037,13.83163641,177.47,177.4,5.63672867]
[1753971336223,14.39454099,177.46,177.41,41.82]
[1753971336424,0.56290458,177.46,177.42,13.83163641]
[1753971336654,1.25290458,177.46,177.43,13.83163641]
[1753971337158,0.56290458,177.46,177.44,13.83163641]
[1753971337453,17.47468397,177.48,177.34,12.5506836]
[1753971337454,14.52163641,177.45,177.34,12.5506836]
[1753971337620,13.83163641,177.42,177.38,13.83163641]
[1753971337817,0.56290458,177.41,177.39,41.78]
[1753971338153,0.69,177.41,177.39,41.78]
[1753971338328,0.56290458,177.4,177.39,41.78]
[1753971338849,0.56290458,177.41,177.39,41.78]
[1753971339220,26.56290458,177.43,177.4,13.83163641]
[1753971339427,14.52163641,177.42,177.39,41.78]
[1753971339629,30.61632038,177.4,177.39,41.78]
[1753971339819,16.78468397,177.39,177.35,41.76]
[1753971340037,14.39454099,177.38,177.35,41.76]
[1753971340238,14.52163641,177.37,177.35,41.76]
[1753971340551,15.08454099,177.36,177.35,41.76]
[1753971341228,20.72279087,177.36,177.29,11.75681088]
[1753971341547,13.83163641,177.32,177.3,41.78]
[1753971341858,13.83163641,177.33,177.3,41.78]
[1753971342031,0.56290458,177.32,177.3,41.78]
[1753971342652,0.56290458,177.35,177.31,19.47147623]
[1753971342842,147.3,177.34,177.32,0.29]
[1753971343026,147.3,177.34,177.33,55.61163641]
[1753971343552,147.3,177.34,177.33,55.90163641]
[1753971343751,147.3,177.34,177.33,42.07]
[1753971343958,147.3,177.34,177.33,55.90163641]
[1753971344647,147.3,177.34,177.33,61.54084015]
[1753971344847,147.3,177.4,177.33,75.63884951]
[1753971345160,147.3,177.4,177.39,13.83163641]
[1753971345354,147.3,177.4,177.39,41.74]
[1753971345647,147.99,177.4,177.39,41.74]
[1753971346551,16.78468397,177.39,177.37,41.76]
[1753971346766,16.78468397,177.39,177.3,6.5708]
[1753971346767,15.08454099,177.38,177.36,41.76]
[1753971347049,14.52163641,177.37,177.36,41.76]
[1753971347249,31.30632038,177.37,177.36,41.76]
[1753971347454,31.30632038,177.37,177.32,41.74]
[1753971347455,16.78468397,177.36,177.32,41.74]
[1753971347765,0.56290458,177.35,177.32,41.74]
[1753971347931,13.83163641,177.34,177.32,41.74]
[1753971348126,0.56290458,177.33,177.32,41.74]
[1753971348656,0.56290458,177.34,177.32,41.74]
[1753971348958,26.56290458,177.35,177.32,41.74]
[1753971349137,0.69,177.38,177.33,13.83163641]
[1753971349340,0.56290458,177.37,177.34,13.83163641]
[1753971349547,0.56290458,177.38,177.35,55.55163641]
[1753971349833,0.56290458,177.41,177.37,13.83163641]
[1753971350051,4.19164827,177.4,177.38,41.72]
[1753971350235,1.25290458,177.39,177.38,41.72]
[1753971350434,0.56290458,177.4,177.38,41.72]
[1753971350834,1.25290458,177.4,177.38,41.72]
[1753971351342,35.4993862,177.39,177.38,41.72]
[1753971351548,21.66774979,177.39,177.38,41.72]